[Event "Early-Titled-Tuesday-Blitz-September-05-2023"]
[Site "Chess.com"]
[Date "2023.09.05"]
[Round "9"]
[White "Irina_Mikhaylova"]
[Black "Actuary44"]
[Result "0-1"]
[WhiteElo "2306"]
[BlackElo "2518"]
[TimeControl "180+1"]
[EndTime "9:43:20 PDT"]
[Termination "Actuary44 won by resignation"]

1. Nf3 {[%clk 0:02:59]} 1... d6 {[%clk 0:02:59.9]} 2. d4 {[%clk 0:02:57.8]} 2...
g6 {[%clk 0:03:00.3]} 3. c4 {[%clk 0:02:58]} 3... Bg7 {[%clk 0:03:00.9]} 4. Nc3
{[%clk 0:02:57.8]} 4... Nf6 {[%clk 0:03:01.6]} 5. e4 {[%clk 0:02:58.1]} 5... O-O
{[%clk 0:03:02.4]} 6. Be2 {[%clk 0:02:58.7]} 6... e5 {[%clk 0:03:02.6]} 7. dxe5
{[%clk 0:02:58.8]} 7... dxe5 {[%clk 0:03:03.5]} 8. Qxd8 {[%clk 0:02:59]} 8...
Rxd8 {[%clk 0:03:04.2]} 9. Bg5 {[%clk 0:02:59.4]} 9... Re8 {[%clk 0:03:04.8]}
10. Nd5 {[%clk 0:02:59.5]} 10... Nxd5 {[%clk 0:03:03.1]} 11. cxd5 {[%clk
0:02:59.9]} 11... c6 {[%clk 0:03:03]} 12. Bc4 {[%clk 0:03:00.2]} 12... cxd5
{[%clk 0:03:02.7]} 13. Bxd5 {[%clk 0:03:00.7]} 13... Nc6 {[%clk 0:03:01.1]} 14.
O-O-O {[%clk 0:03:00.4]} 14... Be6 {[%clk 0:02:58.8]} 15. Bxe6 {[%clk
0:03:00.2]} 15... Rxe6 {[%clk 0:02:59.4]} 16. Rd7 {[%clk 0:02:59.1]} 16... h6
{[%clk 0:02:56.7]} 17. Be3 {[%clk 0:02:58.6]} 17... Rc8 {[%clk 0:02:53.9]} 18.
Kb1 {[%clk 0:02:58.5]} 18... b6 {[%clk 0:02:44.9]} 19. Rhd1 {[%clk 0:02:44.8]}
19... f5 {[%clk 0:02:43.8]} 20. Rb7 {[%clk 0:02:28.5]} 20... Re7 {[%clk
0:02:22.8]} 21. Rxe7 {[%clk 0:01:56]} 21... Nxe7 {[%clk 0:02:23.7]} 22. Rd7
{[%clk 0:01:55.8]} 22... Nc6 {[%clk 0:02:23.5]} 23. g3 {[%clk 0:01:28.3]} 23...
Rd8 {[%clk 0:02:10.3]} 24. Rxd8+ {[%clk 0:01:19.8]} 24... Nxd8 {[%clk
0:02:11.2]} 25. exf5 {[%clk 0:01:17.5]} 25... gxf5 {[%clk 0:02:10.8]} 26. Nh4
{[%clk 0:01:17.9]} 26... f4 {[%clk 0:02:00.4]} 27. gxf4 {[%clk 0:01:18.3]} 27...
exf4 {[%clk 0:01:47.2]} 28. Bxf4 {[%clk 0:01:18.6]} 28... Ne6 {[%clk 0:01:39.8]}
29. Be3 {[%clk 0:01:18.7]} 29... h5 {[%clk 0:01:33.3]} 30. Nf5 {[%clk
0:01:10.9]} 30... Be5 {[%clk 0:01:31.5]} 31. h3 {[%clk 0:01:11.2]} 31... Kf7
{[%clk 0:01:29]} 32. Kc2 {[%clk 0:01:03.3]} 32... Kf6 {[%clk 0:01:27.7]} 33. Ng3
{[%clk 0:00:57.2]} 33... h4 {[%clk 0:01:00.5]} 34. Ne2 {[%clk 0:00:50.4]} 34...
Kf5 {[%clk 0:00:59.6]} 35. f3 {[%clk 0:00:47.5]} 35... Nc7 {[%clk 0:00:35.9]}
36. b3 {[%clk 0:00:45.3]} 36... Nd5 {[%clk 0:00:34.8]} 37. Bd2 {[%clk
0:00:45.7]} 37... Bf6 {[%clk 0:00:33]} 38. Kd3 {[%clk 0:00:44.8]} 38... a5
{[%clk 0:00:19.8]} 39. Be3 {[%clk 0:00:32.6]} 39... Nb4+ {[%clk 0:00:17.6]} 40.
Kc4 {[%clk 0:00:30.6]} 40... Bd8 {[%clk 0:00:13.4]} 41. a3 {[%clk 0:00:28.4]}
41... Nc2 {[%clk 0:00:13.1]} 42. Bc1 {[%clk 0:00:28.2]} 42... Ne1 {[%clk
0:00:13]} 43. f4 {[%clk 0:00:26.8]} 43... Ke4 {[%clk 0:00:11.9]} 44. Nd4 {[%clk
0:00:22.3]} 44... Nd3 {[%clk 0:00:11.1]} 45. f5 {[%clk 0:00:21.4]} 45... Nxc1
{[%clk 0:00:10.2]} 46. Ne6 {[%clk 0:00:19.3]} 46... Bf6 {[%clk 0:00:10.1]} 47.
Nc7 {[%clk 0:00:18.9]} 47... Kxf5 {[%clk 0:00:09.7]} 48. Nd5 {[%clk 0:00:19.3]}
48... Bd8 {[%clk 0:00:10]} 49. Ne3+ {[%clk 0:00:17.5]} 49... Ke4 {[%clk
0:00:09.8]} 50. Ng4 {[%clk 0:00:17.9]} 50... Kf3 {[%clk 0:00:09.7]} 51. Kb5
{[%clk 0:00:17.6]} 51... Nxb3 {[%clk 0:00:08.8]} 52. Kc6 {[%clk 0:00:16.7]}
52... Kg3 {[%clk 0:00:08.5]} 53. Kd7 {[%clk 0:00:16.6]} 53... Kxh3 {[%clk
0:00:08.9]} 54. Ne5 {[%clk 0:00:16.7]} 54... Bf6 {[%clk 0:00:07.9]} 55. Nd3
{[%clk 0:00:15.2]} 55... Kg3 {[%clk 0:00:06.9]} 56. Ke6 {[%clk 0:00:13.2]} 56...
Nc5+ {[%clk 0:00:05.7]} 57. Nxc5 {[%clk 0:00:12.6]} 57... bxc5 {[%clk
0:00:06.6]} 58. Kxf6 {[%clk 0:00:13.2]} 58... h3 {[%clk 0:00:07.5]} 0-1

[Event "Early-Titled-Tuesday-Blitz-September-05-2023"]
[Site "Chess.com"]
[Date "2023.09.05"]
[Round "9"]
[White "PawnEatingZombie"]
[Black "campochess"]
[Result "1-0"]
[WhiteElo "2055"]
[BlackElo "2161"]
[TimeControl "180+1"]
[EndTime "9:43:21 PDT"]
[Termination "PawnEatingZombie won by checkmate"]

1. e4 {[%clk 0:02:58.1]} 1... c5 {[%clk 0:02:59.9]} 2. Nf3 {[%clk 0:02:56.5]}
2... Nc6 {[%clk 0:03:00]} 3. b4 {[%clk 0:02:39.9]} 3... cxb4 {[%clk 0:02:58.7]}
4. d4 {[%clk 0:02:39.6]} 4... d5 {[%clk 0:02:56.2]} 5. exd5 {[%clk 0:02:40.2]}
5... Qxd5 {[%clk 0:02:56]} 6. c4 {[%clk 0:02:37]} 6... Qe4+ {[%clk 0:02:49.2]}
7. Be2 {[%clk 0:02:35.9]} 7... Bg4 {[%clk 0:02:46.6]} 8. O-O {[%clk 0:02:33.1]}
8... Rd8 {[%clk 0:02:37.4]} 9. Be3 {[%clk 0:01:54.6]} 9... Nf6 {[%clk
0:02:35.5]} 10. Nbd2 {[%clk 0:01:33.6]} 10... Qf5 {[%clk 0:02:33.8]} 11. d5
{[%clk 0:01:29.4]} 11... Bxf3 {[%clk 0:02:28.1]} 12. Nxf3 {[%clk 0:01:22.9]}
12... Ne5 {[%clk 0:02:22.7]} 13. Qa4+ {[%clk 0:01:13]} 13... Ned7 {[%clk
0:02:21.2]} 14. Qxa7 {[%clk 0:01:06.4]} 14... g6 {[%clk 0:02:06.9]} 15. Qxb7
{[%clk 0:01:00.8]} 15... Bg7 {[%clk 0:02:06.7]} 16. Nd4 {[%clk 0:00:59.9]} 16...
Qe4 {[%clk 0:01:57.8]} 17. Nc6 {[%clk 0:00:57.9]} 17... O-O {[%clk 0:01:51.5]}
18. Nxd8 {[%clk 0:00:49]} 18... Rxd8 {[%clk 0:01:50.7]} 19. Rfd1 {[%clk
0:00:42.4]} 19... Qe5 {[%clk 0:01:44.5]} 20. Qxb4 {[%clk 0:00:39.9]} 20... Ne4
{[%clk 0:01:33.3]} 21. Bd4 {[%clk 0:00:21.4]} 21... Qf4 {[%clk 0:01:27.9]} 22.
Bf3 {[%clk 0:00:09.3]} 22... Ng5 {[%clk 0:01:21.8]} 23. Bxg7 {[%clk 0:00:07.7]}
23... Nxf3+ {[%clk 0:01:21.4]} 24. gxf3 {[%clk 0:00:07.5]} 24... Kxg7 {[%clk
0:01:21.2]} 25. Qxe7 {[%clk 0:00:06]} 25... Qb8 {[%clk 0:01:18.4]} 26. Qe3
{[%clk 0:00:05.4]} 26... Nf6 {[%clk 0:01:15.6]} 27. Qd4 {[%clk 0:00:05.4]} 27...
Qd6 {[%clk 0:01:02.2]} 28. c5 {[%clk 0:00:04.8]} 28... Qxd5 {[%clk 0:01:00.6]}
29. Qxd5 {[%clk 0:00:05.5]} 29... Nxd5 {[%clk 0:00:59.3]} 30. Rac1 {[%clk
0:00:06.1]} 30... Kf6 {[%clk 0:00:57]} 31. Rxd5 {[%clk 0:00:05.8]} 31... Rxd5
{[%clk 0:00:55.6]} 32. c6 {[%clk 0:00:06.7]} 32... Rd8 {[%clk 0:00:55.7]} 33. c7
{[%clk 0:00:07.6]} 33... Rc8 {[%clk 0:00:55.8]} 34. Kf1 {[%clk 0:00:08.1]} 34...
Ke7 {[%clk 0:00:55.3]} 35. Ke2 {[%clk 0:00:08.7]} 35... Kd7 {[%clk 0:00:55.1]}
36. Ke3 {[%clk 0:00:09.3]} 36... Re8+ {[%clk 0:00:53.4]} 37. Kf4 {[%clk
0:00:09.7]} 37... Kc8 {[%clk 0:00:53.6]} 38. a4 {[%clk 0:00:09.2]} 38... Re6
{[%clk 0:00:50.5]} 39. Rc5 {[%clk 0:00:09.1]} 39... f6 {[%clk 0:00:48.3]} 40. a5
{[%clk 0:00:09]} 40... h5 {[%clk 0:00:46]} 41. h4 {[%clk 0:00:09.3]} 41... Re2
{[%clk 0:00:40.4]} 42. Kg3 {[%clk 0:00:08.9]} 42... Ra2 {[%clk 0:00:39.6]} 43.
f4 {[%clk 0:00:08.3]} 43... Ra3+ {[%clk 0:00:39]} 44. f3 {[%clk 0:00:08.9]}
44... Ra2 {[%clk 0:00:38.8]} 45. f5 {[%clk 0:00:08.4]} 45... gxf5 {[%clk
0:00:36.5]} 46. Rxf5 {[%clk 0:00:08.4]} 46... Kxc7 {[%clk 0:00:35.3]} 47. Rxh5
{[%clk 0:00:08.9]} 47... Kd6 {[%clk 0:00:34.2]} 48. Rb5 {[%clk 0:00:08.5]} 48...
Ke6 {[%clk 0:00:32.2]} 49. h5 {[%clk 0:00:08.4]} 49... Ra1 {[%clk 0:00:29.8]}
50. h6 {[%clk 0:00:06.6]} 50... Rh1 {[%clk 0:00:28.7]} 51. a6 {[%clk 0:00:06.3]}
51... Rg1+ {[%clk 0:00:20.5]} 52. Kf2 {[%clk 0:00:05.9]} 52... Rg8 {[%clk
0:00:20.1]} 53. a7 {[%clk 0:00:05.3]} 53... Ra8 {[%clk 0:00:19.7]} 54. Rb7
{[%clk 0:00:05.2]} 54... Kf5 {[%clk 0:00:19]} 55. h7 {[%clk 0:00:04.9]} 55...
Kg6 {[%clk 0:00:19.1]} 56. h8=Q {[%clk 0:00:04.9]} 56... Rxh8 {[%clk 0:00:17.5]}
57. Rb8 {[%clk 0:00:05.4]} 57... Rh2+ {[%clk 0:00:15.9]} 58. Kg3 {[%clk
0:00:06]} 58... Rh5 {[%clk 0:00:12.4]} 59. a8=Q {[%clk 0:00:05.3]} 59... Rg5+
{[%clk 0:00:12.2]} 60. Kf2 {[%clk 0:00:05.5]} 60... Re5 {[%clk 0:00:11.7]} 61.
Rg8+ {[%clk 0:00:05.2]} 61... Kf5 {[%clk 0:00:10.8]} 62. Qc8+ {[%clk 0:00:04.7]}
62... Kf4 {[%clk 0:00:08.9]} 63. Qg4# {[%clk 0:00:03]} 1-0

[Event "Early-Titled-Tuesday-Blitz-September-05-2023"]
[Site "Chess.com"]
[Date "2023.09.05"]
[Round "9"]
[White "SashaKuzhilniy"]
[Black "TanitoluwaAps116"]
[Result "1-0"]
[WhiteElo "2647"]
[BlackElo "2774"]
[TimeControl "180+1"]
[EndTime "9:43:22 PDT"]
[Termination "SashaKuzhilniy won by checkmate"]

1. b3 {[%clk 0:03:00.9]} 1... Nf6 {[%clk 0:02:51.8]} 2. Bb2 {[%clk 0:03:01.2]}
2... g6 {[%clk 0:02:52.7]} 3. Nf3 {[%clk 0:03:01.2]} 3... Bg7 {[%clk 0:02:52.9]}
4. g3 {[%clk 0:03:01.9]} 4... O-O {[%clk 0:02:52.5]} 5. Bg2 {[%clk 0:03:02.6]}
5... Nh5 {[%clk 0:02:52.9]} 6. d4 {[%clk 0:03:02.5]} 6... c5 {[%clk 0:02:52.3]}
7. e3 {[%clk 0:03:00]} 7... Nc6 {[%clk 0:02:51.1]} 8. O-O {[%clk 0:02:59.8]}
8... cxd4 {[%clk 0:02:48.7]} 9. Nxd4 {[%clk 0:02:59.7]} 9... d5 {[%clk
0:02:37.1]} 10. Nxc6 {[%clk 0:02:57.9]} 10... bxc6 {[%clk 0:02:38]} 11. Bxg7
{[%clk 0:02:58.1]} 11... Nxg7 {[%clk 0:02:37.3]} 12. c4 {[%clk 0:02:58]} 12...
Ba6 {[%clk 0:02:30.7]} 13. Nd2 {[%clk 0:02:37.3]} 13... Qa5 {[%clk 0:02:24.1]}
14. Qc2 {[%clk 0:02:35.3]} 14... Rfd8 {[%clk 0:02:20]} 15. Rfd1 {[%clk
0:02:34.8]} 15... Rac8 {[%clk 0:02:15.7]} 16. a3 {[%clk 0:02:19.2]} 16... Nf5
{[%clk 0:02:12]} 17. b4 {[%clk 0:02:12.4]} 17... Qb6 {[%clk 0:02:09.8]} 18. c5
{[%clk 0:02:02.5]} 18... Qb8 {[%clk 0:02:09.6]} 19. Bh3 {[%clk 0:02:02.3]} 19...
e6 {[%clk 0:02:02.4]} 20. Bxf5 {[%clk 0:02:01.6]} 20... gxf5 {[%clk 0:02:02.6]}
21. Nb3 {[%clk 0:02:00.5]} 21... Bc4 {[%clk 0:01:51]} 22. Na5 {[%clk 0:01:54.8]}
22... Bb5 {[%clk 0:01:48.3]} 23. Rd4 {[%clk 0:01:54.6]} 23... Qe5 {[%clk
0:01:45.4]} 24. Rad1 {[%clk 0:01:50.1]} 24... Qf6 {[%clk 0:01:38.2]} 25. Nb7
{[%clk 0:01:48.7]} 25... Rd7 {[%clk 0:01:36.2]} 26. Nd6 {[%clk 0:01:49.2]} 26...
Rb8 {[%clk 0:01:24.3]} 27. a4 {[%clk 0:01:26.7]} 27... Ba6 {[%clk 0:01:18.1]}
28. b5 {[%clk 0:01:20.4]} 28... cxb5 {[%clk 0:01:11.2]} 29. Rb1 {[%clk
0:01:19.8]} 29... b4 {[%clk 0:01:03.5]} 30. Rdxb4 {[%clk 0:01:15]} 30... Rxb4
{[%clk 0:01:03.4]} 31. Rxb4 {[%clk 0:01:15.9]} 31... Qa1+ {[%clk 0:00:53]} 32.
Rb1 {[%clk 0:01:15.9]} 32... Qa3 {[%clk 0:00:49.6]} 33. Nb5 {[%clk 0:00:51.7]}
33... Bxb5 {[%clk 0:00:36.5]} 34. axb5 {[%clk 0:00:52.6]} 34... Rc7 {[%clk
0:00:29]} 35. c6 {[%clk 0:00:52.1]} 35... Qd6 {[%clk 0:00:25]} 36. Ra1 {[%clk
0:00:48.6]} 36... Qb4 {[%clk 0:00:20.6]} 37. Qa4 {[%clk 0:00:47.2]} 37... Qc5
{[%clk 0:00:18.2]} 38. Qa5 {[%clk 0:00:44.5]} 38... Rc8 {[%clk 0:00:13.5]} 39.
Qa6 {[%clk 0:00:42.7]} 39... Rc7 {[%clk 0:00:12.3]} 40. Qa5 {[%clk 0:00:42.9]}
40... Rc8 {[%clk 0:00:09.4]} 41. Qxa7 {[%clk 0:00:28.4]} 41... Qxb5 {[%clk
0:00:09.7]} 42. Rc1 {[%clk 0:00:28.5]} 42... Kg7 {[%clk 0:00:06.4]} 43. c7
{[%clk 0:00:20.9]} 43... e5 {[%clk 0:00:05.3]} 44. Qc5 {[%clk 0:00:18.1]} 44...
Qd7 {[%clk 0:00:05.1]} 45. Qc3 {[%clk 0:00:16.7]} 45... f6 {[%clk 0:00:03.7]}
46. Kf1 {[%clk 0:00:14.5]} 46... Kf7 {[%clk 0:00:04]} 47. Kg2 {[%clk 0:00:14.6]}
47... Ke6 {[%clk 0:00:04]} 48. Qa5 {[%clk 0:00:14.4]} 48... d4 {[%clk
0:00:03.4]} 49. Qb6+ {[%clk 0:00:13]} 49... Kf7 {[%clk 0:00:02.7]} 50. exd4
{[%clk 0:00:13.5]} 50... exd4 {[%clk 0:00:03.3]} 51. Rd1 {[%clk 0:00:12.1]}
51... Qd5+ {[%clk 0:00:03.2]} 52. Kg1 {[%clk 0:00:12]} 52... d3 {[%clk
0:00:02.8]} 53. Qa6 {[%clk 0:00:10.1]} 53... Rxc7 {[%clk 0:00:02.8]} 54. Qxd3
{[%clk 0:00:10.8]} 54... Qe6 {[%clk 0:00:03.1]} 55. Qd8 {[%clk 0:00:09.7]} 55...
Re7 {[%clk 0:00:03.3]} 56. Qh8 {[%clk 0:00:08.3]} 56... Kg6 {[%clk 0:00:03.8]}
57. Qd8 {[%clk 0:00:07.9]} 57... f4 {[%clk 0:00:03.7]} 58. Qd3+ {[%clk
0:00:08.1]} 58... Kg7 {[%clk 0:00:04.1]} 59. gxf4 {[%clk 0:00:06.8]} 59... h5
{[%clk 0:00:02.9]} 60. f5 {[%clk 0:00:06.2]} 60... Qe5 {[%clk 0:00:02.9]} 61.
Qg3+ {[%clk 0:00:06.5]} 61... Kh6 {[%clk 0:00:03]} 62. Qg6# {[%clk 0:00:06.6]}
1-0

[Event "Early-Titled-Tuesday-Blitz-September-05-2023"]
[Site "Chess.com"]
[Date "2023.09.05"]
[Round "9"]
[White "Keeper0416"]
[Black "vovachesss"]
[Result "0-1"]
[WhiteElo "2606"]
[BlackElo "2774"]
[TimeControl "180+1"]
[EndTime "9:43:22 PDT"]
[Termination "vovachesss won by checkmate"]

1. d4 {[%clk 0:03:00.9]} 1... Nf6 {[%clk 0:02:59.2]} 2. c4 {[%clk 0:03:00.4]}
2... e6 {[%clk 0:02:59.3]} 3. Bf4 {[%clk 0:02:58.9]} 3... Bb4+ {[%clk
0:02:49.9]} 4. Nd2 {[%clk 0:02:58.4]} 4... d5 {[%clk 0:02:48.5]} 5. cxd5 {[%clk
0:02:51.9]} 5... Nxd5 {[%clk 0:02:41.1]} 6. Bg3 {[%clk 0:02:51.7]} 6... c5
{[%clk 0:02:41.7]} 7. e4 {[%clk 0:02:48.4]} 7... Nf6 {[%clk 0:02:40.9]} 8. e5
{[%clk 0:02:47.2]} 8... Ne4 {[%clk 0:02:36.9]} 9. Nf3 {[%clk 0:02:42.4]} 9...
Nxd2 {[%clk 0:02:34.8]} 10. Nxd2 {[%clk 0:02:43.3]} 10... Qxd4 {[%clk
0:02:35.2]} 11. a3 {[%clk 0:02:38]} 11... Ba5 {[%clk 0:02:30.5]} 12. Bb5+ {[%clk
0:02:05.8]} 12... Bd7 {[%clk 0:02:29.8]} 13. Bxd7+ {[%clk 0:02:05.3]} 13... Nxd7
{[%clk 0:02:28.1]} 14. b4 {[%clk 0:01:57.5]} 14... cxb4 {[%clk 0:02:20.1]} 15.
O-O {[%clk 0:01:57]} 15... bxa3 {[%clk 0:02:17.8]} 16. Rxa3 {[%clk 0:00:30]}
16... Qxd2 {[%clk 0:02:04.7]} 17. Qa4 {[%clk 0:00:29]} 17... Qb4 {[%clk
0:02:02.8]} 18. Qxa5 {[%clk 0:00:28.4]} 18... Qxa5 {[%clk 0:02:00.1]} 19. Rxa5
{[%clk 0:00:29.3]} 19... b6 {[%clk 0:01:42.7]} 20. Ra3 {[%clk 0:00:24.2]} 20...
a5 {[%clk 0:01:32.3]} 21. Rb1 {[%clk 0:00:18.9]} 21... Ke7 {[%clk 0:01:25.4]}
22. f4 {[%clk 0:00:19.4]} 22... Rhb8 {[%clk 0:01:23.3]} 23. Rb5 {[%clk
0:00:16.6]} 23... Rc8 {[%clk 0:01:10.5]} 24. h3 {[%clk 0:00:15.9]} 24... Rc5
{[%clk 0:01:08.2]} 25. Bh4+ {[%clk 0:00:14.7]} 25... f6 {[%clk 0:01:05.8]} 26.
exf6+ {[%clk 0:00:13.6]} 26... gxf6 {[%clk 0:01:06.7]} 27. Rb1 {[%clk
0:00:12.8]} 27... b5 {[%clk 0:01:05.4]} 28. Bf2 {[%clk 0:00:11.7]} 28... Rd5
{[%clk 0:01:05.2]} 29. Be1 {[%clk 0:00:08.9]} 29... a4 {[%clk 0:00:58.2]} 30.
Bb4+ {[%clk 0:00:09]} 30... Kf7 {[%clk 0:00:57.8]} 31. Rc3 {[%clk 0:00:05.6]}
31... Ra7 {[%clk 0:00:55.5]} 32. Rc8 {[%clk 0:00:05.1]} 32... Rb7 {[%clk
0:00:53.5]} 33. g4 {[%clk 0:00:03.3]} 33... Rd4 {[%clk 0:00:49.1]} 34. f5 {[%clk
0:00:03.8]} 34... exf5 {[%clk 0:00:48.8]} 35. gxf5 {[%clk 0:00:04.7]} 35... Rd5
{[%clk 0:00:45.6]} 36. Re1 {[%clk 0:00:03.4]} 36... Re5 {[%clk 0:00:41.3]} 37.
Rd1 {[%clk 0:00:03.1]} 37... Rxf5 {[%clk 0:00:39.8]} 38. Kh1 {[%clk 0:00:03.2]}
38... Rf4 {[%clk 0:00:29.6]} 39. Bd6 {[%clk 0:00:02.5]} 39... Rc4 {[%clk
0:00:24.8]} 40. Rd8 {[%clk 0:00:01.9]} 40... Ne5 {[%clk 0:00:11.1]} 41. Re1
{[%clk 0:00:02]} 41... Rd7 {[%clk 0:00:07]} 42. Rf8+ {[%clk 0:00:01.8]} 42...
Ke6 {[%clk 0:00:07.1]} 43. Ba3 {[%clk 0:00:01.1]} 43... b4 {[%clk 0:00:05.7]}
44. Bb2 {[%clk 0:00:01.8]} 44... a3 {[%clk 0:00:05.7]} 45. Ba1 {[%clk
0:00:02.3]} 45... b3 {[%clk 0:00:05.9]} 46. Rxf6+ {[%clk 0:00:02.7]} 46... Kxf6
{[%clk 0:00:06]} 47. Bxe5+ {[%clk 0:00:01.8]} 47... Kf5 {[%clk 0:00:06.1]} 48.
Bh8 {[%clk 0:00:01]} 48... b2 {[%clk 0:00:06.3]} 49. Rf1+ {[%clk 0:00:01.6]}
49... Ke4 {[%clk 0:00:06.5]} 50. Re1+ {[%clk 0:00:02.3]} 50... Kf3 {[%clk
0:00:06.8]} 51. Rf1+ {[%clk 0:00:02.8]} 51... Ke2 {[%clk 0:00:07.3]} 52. Rg1
{[%clk 0:00:02.7]} 52... Rc1 {[%clk 0:00:07.6]} 53. Bxb2 {[%clk 0:00:03.2]}
53... axb2 {[%clk 0:00:07.5]} 54. Kh2 {[%clk 0:00:02.8]} 54... Rxg1 {[%clk
0:00:07.6]} 55. h4 {[%clk 0:00:03.7]} 55... b1=Q {[%clk 0:00:07.8]} 56. h5
{[%clk 0:00:04.6]} 56... Qf1 {[%clk 0:00:07.2]} 57. h6 {[%clk 0:00:05.5]} 57...
Qg2# {[%clk 0:00:07.7]} 0-1

[Event "Early-Titled-Tuesday-Blitz-September-05-2023"]
[Site "Chess.com"]
[Date "2023.09.05"]
[Round "9"]
[White "Dmitry_Konenkin"]
[Black "Maus7"]
[Result "0-1"]
[WhiteElo "2399"]
[BlackElo "2491"]
[TimeControl "180+1"]
[EndTime "9:43:23 PDT"]
[Termination "Maus7 won by resignation"]

1. d4 {[%clk 0:03:00.9]} 1... Nf6 {[%clk 0:03:00.5]} 2. Bg5 {[%clk 0:03:00.9]}
2... e6 {[%clk 0:02:59.1]} 3. e4 {[%clk 0:03:00.8]} 3... d5 {[%clk 0:02:40.9]}
4. e5 {[%clk 0:03:00.7]} 4... h6 {[%clk 0:02:40.9]} 5. Be3 {[%clk 0:02:51.8]}
5... Ng8 {[%clk 0:02:28.1]} 6. f4 {[%clk 0:02:51.5]} 6... Ne7 {[%clk 0:02:24.8]}
7. Bd3 {[%clk 0:02:48.2]} 7... Nf5 {[%clk 0:02:24.8]} 8. Bf2 {[%clk 0:02:47.5]}
8... h5 {[%clk 0:02:23.5]} 9. Nf3 {[%clk 0:02:45.7]} 9... b6 {[%clk 0:02:10.4]}
10. O-O {[%clk 0:02:44.5]} 10... Be7 {[%clk 0:02:11]} 11. c3 {[%clk 0:02:34.1]}
11... c5 {[%clk 0:01:51]} 12. Nbd2 {[%clk 0:02:19.1]} 12... c4 {[%clk
0:01:37.1]} 13. Bc2 {[%clk 0:02:02.8]} 13... Nc6 {[%clk 0:01:37.4]} 14. b3
{[%clk 0:01:59.1]} 14... b5 {[%clk 0:01:37.7]} 15. a4 {[%clk 0:01:58.2]} 15...
b4 {[%clk 0:01:23.2]} 16. bxc4 {[%clk 0:01:53.3]} 16... bxc3 {[%clk 0:01:21.4]}
17. cxd5 {[%clk 0:01:35.5]} 17... exd5 {[%clk 0:01:15.3]} 18. Nb1 {[%clk
0:01:29.7]} 18... Qa5 {[%clk 0:01:07.8]} 19. Re1 {[%clk 0:01:05.9]} 19... O-O
{[%clk 0:01:07]} 20. Qd3 {[%clk 0:01:03.8]} 20... Be6 {[%clk 0:00:48.9]} 21. h3
{[%clk 0:00:35.8]} 21... Rfc8 {[%clk 0:00:44]} 22. g4 {[%clk 0:00:34]} 22...
hxg4 {[%clk 0:00:43.6]} 23. hxg4 {[%clk 0:00:34.9]} 23... Nb4 {[%clk 0:00:44.2]}
24. Qe2 {[%clk 0:00:27.3]} 24... Nxc2 {[%clk 0:00:44.5]} 25. Qxc2 {[%clk
0:00:28.2]} 25... Nh6 {[%clk 0:00:42.5]} 26. f5 {[%clk 0:00:27.7]} 26... Bd7
{[%clk 0:00:34.4]} 27. e6 {[%clk 0:00:24.6]} 27... fxe6 {[%clk 0:00:30.2]} 28.
fxe6 {[%clk 0:00:25.5]} 28... Be8 {[%clk 0:00:30.9]} 29. Ne5 {[%clk 0:00:19.5]}
29... Rab8 {[%clk 0:00:20.8]} 30. Ra2 {[%clk 0:00:17.7]} 30... Bf6 {[%clk
0:00:14.2]} 31. Nd7 {[%clk 0:00:13.7]} 31... Bxd7 {[%clk 0:00:12]} 32. exd7
{[%clk 0:00:14.6]} 32... Rd8 {[%clk 0:00:12.9]} 33. Qxc3 {[%clk 0:00:13.3]}
33... Qxc3 {[%clk 0:00:10]} 34. Nxc3 {[%clk 0:00:14.2]} 34... Rxd7 {[%clk
0:00:10.9]} 35. Rae2 {[%clk 0:00:10.9]} 35... Nxg4 {[%clk 0:00:11]} 36. Re8+
{[%clk 0:00:08.5]} 36... Rxe8 {[%clk 0:00:11.6]} 37. Rxe8+ {[%clk 0:00:09.2]}
37... Kf7 {[%clk 0:00:12.5]} 38. Re2 {[%clk 0:00:03.8]} 38... Nxf2 {[%clk
0:00:12.9]} 39. Rxf2 {[%clk 0:00:01.4]} 39... Ke6 {[%clk 0:00:09]} 40. Ne2
{[%clk 0:00:02.3]} 40... Rc7 {[%clk 0:00:06.8]} 41. Rf3 {[%clk 0:00:02.9]} 41...
Rc4 {[%clk 0:00:06.1]} 42. Re3+ {[%clk 0:00:03.5]} 42... Kd6 {[%clk 0:00:04.5]}
43. Rg3 {[%clk 0:00:03.4]} 43... Rxa4 {[%clk 0:00:03.9]} 44. Kf2 {[%clk
0:00:03.9]} 44... a5 {[%clk 0:00:04]} 45. Ke3 {[%clk 0:00:04.2]} 45... Ra3+
{[%clk 0:00:03.8]} 46. Kf2 {[%clk 0:00:03.9]} 46... Rxg3 {[%clk 0:00:02.4]} 47.
Kxg3 {[%clk 0:00:04.8]} 47... Kc6 {[%clk 0:00:02.2]} 48. Kf4 {[%clk 0:00:04.5]}
48... Kb5 {[%clk 0:00:02.4]} 49. Ke3 {[%clk 0:00:04.9]} 49... Kc4 {[%clk
0:00:02.6]} 50. Nc1 {[%clk 0:00:02.3]} 50... Bg5+ {[%clk 0:00:02.1]} 51. Kf3
{[%clk 0:00:01.6]} 51... Bxc1 {[%clk 0:00:03]} 52. Kg4 {[%clk 0:00:02.4]} 52...
Kxd4 {[%clk 0:00:03.2]} 53. Kf5 {[%clk 0:00:03.3]} 53... a4 {[%clk 0:00:04.1]}
54. Ke6 {[%clk 0:00:04.2]} 54... a3 {[%clk 0:00:05]} 55. Kf7 {[%clk 0:00:05.1]}
55... a2 {[%clk 0:00:05.9]} 56. Kg8 {[%clk 0:00:06]} 56... a1=Q {[%clk
0:00:06.5]} 57. Kh7 {[%clk 0:00:06.9]} 57... g5 {[%clk 0:00:06.3]} 58. Kg8
{[%clk 0:00:07.8]} 58... g4 {[%clk 0:00:07.2]} 59. Kf7 {[%clk 0:00:08.7]} 59...
g3 {[%clk 0:00:08.1]} 60. Kg8 {[%clk 0:00:09.6]} 60... g2 {[%clk 0:00:09]} 61.
Kh7 {[%clk 0:00:10.5]} 0-1